fUST/lending_fUST_20250401
["ID","MTS","AMOUNT","RATE_DAILY","PERIOD"]
[356962849,1743501190225,1299.3,0.00010959,2]
[356962850,1743501200720,1673.34,0.00010959,2]
[356962851,1743501211254,1394.45,0.00010959,2]
[356962852,1743501221735,2406.11,0.00010959,2]
[356962853,1743501222390,-167.642955,0.00016409,2]
[356962854,1743501222414,-150.48385792,0.00017344,2]
[356962855,1743501222437,-500.0,0.00017344,2]
[356962856,1743501222460,-363.76,0.00017344,2]
[356962857,1743501222483,-162.11937614,0.00017344,2]
[356962858,1743501222507,-225.53376751,0.00017344,2]
[356962859,1743501222533,-466.86604343,0.00017344,2]
[356962860,1743501232207,2289.91,0.00010959,2]
[356962861,1743501242935,2175.94,0.00010959,2]
[356962862,1743501253421,2011.07,0.00010959,2]
[356962863,1743501263898,1840.72,0.00010959,2]
[356962864,1743501274415,1671.28,0.00010959,2]
[356962865,1743501285180,1392.74,0.00010959,2]
[356962866,1743501295688,1275.07,0.00010959,2]
[356962867,1743501306219,1237.43,0.00010959,2]
[356962868,1743501316702,1031.19,0.00010959,2]
[356962869,1743501327232,859.33,0.00010959,2]
[356962870,1743501337740,837.54,0.00010959,2]
[356962871,1743501348232,743.95,0.00010959,2]
[356962873,1743501358746,658.29,0.00010959,2]
[356962880,1743501369224,580.52,0.00010959,2]
[356962884,1743501379706,643.49,0.00010959,2]
[356962885,1743501390181,536.24,0.00010959,2]
[356962886,1743501400955,446.87,0.00010959,2]
[356962887,1743501411466,372.39,0.00010959,2]
[356962888,1743501422011,310.33,0.00010959,2]
[356962889,1743501432527,258.61,0.00010959,2]
[356962890,1743501443043,215.5,0.00010959,2]
[356962891,1743501453830,179.59,0.00010959,2]
[356962892,1743501464312,897.96,0.00010959,2]
[356962893,1743502134895,900.0,0.00016,120]
[356962894,1743502194891,-250.0,0.00016,30]
[356962907,1743502236546,-154.87325922,0.00014269,2]
[356962908,1743502236557,-203.83929087,0.00014563,2]
[356962952,1743502240638,-25.115,0.00014563,2]
[356962953,1743502240729,-0.00665951,0.00014563,2]
[356962984,1743502309014,900.75,0.00010959,2]
[356962985,1743502319527,750.63,0.00010959,2]
[356962986,1743502330074,625.52,0.00010959,2]
[356962987,1743502340603,521.27,0.00010959,2]
[356962988,1743502351095,434.39,0.00010959,2]
[356962989,1743502361608,288.64826699,0.00010959,2]
[356962990,1743502361640,73.34173301,0.00010959,2]
[356962991,1743502372131,301.66,0.00010959,2]
[356962992,1743502382606,-251.49506895,0.00014563,2]
[356962993,1743502382723,251.38,0.00010959,2]
[356962998,1743502393243,3506.1,0.00010959,2]
[356963003,1743502395581,-151.0,0.00014563,2]
[356963004,1743502396697,-182.9538297,0.00014563,2]
[356963005,1743502403323,-268.0,0.00016343,2]
[356963006,1743502403745,3418.24,0.00010959,2]
[356963007,1743502414288,3036.6,0.00010959,2]
[356963008,1743502422640,-225.53376751,0.00016179,2]
[356963009,1743502424772,2687.22,0.00010959,2]
[356963010,1743502435252,2369.95,0.00010959,2]
[356963011,1743502443680,-197.14323007,0.00016179,2]
[356963012,1743502445957,1974.96,0.00010959,2]
[356963013,1743502448447,-250.0,0.00016169,2]
[356963014,1743502448471,-172.67699758,0.00016179,2]
[356963015,1743502450746,-234.82266084,0.00016179,2]
[356963016,1743502450769,-297.13968099,0.00016343,2]
[356963017,1743502451760,-261.23055817,0.00016343,2]
[356963018,1743502455401,-3.80641684,0.00016343,2]
[356963019,1743502455425,-183.3442535,0.00016344,2]
[356963020,1743502455448,-34.8863497,0.00017341,2]
[356963021,1743502456465,1645.8,0.00010959,2]
[356963022,1743502462707,-151.88177743,0.00017242,2]
[356963023,1743502467053,1371.5,0.00010959,2]
[356963024,1743502467813,-186.92266443,0.0001707,2]
[356963025,1743502477591,1418.02,0.00010959,2]
[356963026,1743502488090,1297.16,0.00010959,2]
[356963027,1743502498569,1124.7,0.00010959,2]
[356963028,1743502509101,937.25,0.00010959,2]
[356963029,1743502519607,847.86,0.00010959,2]
[356963030,1743502530274,706.55,0.00010959,2]
[356963031,1743502541037,740.67,0.00010959,2]
[356963032,1743502547757,-336.1768186,0.00016342,2]
[356963033,1743502551549,617.22,0.00010959,2]
[356963034,1743502562040,514.35,0.00010959,2]
[356963035,1743502572562,428.63,0.00010959,2]
[356963036,1743502583263,357.19,0.00010959,2]
[356963037,1743502593759,297.66,0.00010959,2]
[356963038,1743502604301,248.05,0.00010959,2]
[356963039,1743502614841,206.71,0.00010959,2]
[356963040,1743502625356,172.25,0.00010959,2]
[356963041,1743502626836,-293.85606545,0.00016341,2]
[356963042,1743502636103,219.66,0.00010959,2]
[356963043,1743502646591,183.05,0.00010959,2]
[356963044,1743502657063,152.54,0.00010959,2]
[356963045,1743502667519,762.75,0.00010959,2]
[356963046,1743502795312,-300.0,0.00016178,2]
[356963047,1743502795337,-300.0,0.00016341,2]
[356963048,1743502795362,-900.3748,0.00016342,2]
[356963049,1743502839783,-154.87325922,0.00016016,2]
[356963050,1743502841616,-145.12674078,0.00016016,2]
[356963051,1743502841651,-278.84325922,0.00016159,2]
[356963052,1743502843935,-269.09674078,0.00016159,2]
[356963053,1743502853272,-423.97,0.00015997,2]
[356963054,1743502945312,-186.9226645,0.00015997,2]
[356963055,1743502946391,-237.0473355,0.00015997,2]
[356963056,1743502984597,-300.0,0.00015997,2]
[356963060,1743503034427,-375.41759192,0.00015837,2]
[356963062,1743503074797,-154.87325922,0.00015634,2]
[356963065,1743503109780,-220.5443327,0.00015837,2]
[356963069,1743503138339,-483.50487793,0.00015837,2]
[356963070,1743503141214,-257.50487793,0.00015837,2]
[356963071,1743503157762,-25.51483652,0.00015837,2]
[356963072,1743503157786,-216.98028555,0.00016159,2]
[356963074,1743503161796,-171.35,0.00016159,2]
[356963075,1743503168784,-154.71305417,0.00015997,2]
[356963077,1743503177598,-228.36155915,0.00015997,2]
[356963078,1743503180664,-353.32835595,0.00015997,2]
[356963079,1743503184216,-206.14393455,0.00015997,2]
[356963080,1743503191789,-216.53306303,0.00015997,2]
[356963082,1743503217331,-187.7,0.00015997,2]
[356963083,1743503219815,-220.60635781,0.00015997,2]
[356963084,1743503223270,-220.60635781,0.00015997,2]
[356963085,1743503236532,-334.10354898,0.00015997,2]
[356963086,1743503236556,-95.09873962,0.00016159,2]
[356963094,1743503320953,667.55404374,0.0001,7]
[356963162,1743503432609,-415.088328,0.00015304,2]
[356963164,1743503432619,-415.088328,0.00015458,2]
[356963166,1743503432628,-1639.59119673,0.00016159,2]
[356963168,1743503432639,-387.4062951,0.00016159,2]
[356963170,1743503432648,-186.9226645,0.00016164,2]
[356963171,1743503432657,-1900.49602758,0.00016338,2]
[356963172,1743503432666,-300.0,0.00016341,2]
[356963173,1743503432675,-4553.49699109,0.00016342,2]
[356963174,1743503432687,-426.09,0.00016342,2]
[356963313,1743503438447,-13302.60760381,0.00016342,2]
[356963314,1743503438457,-500.0,0.00016437,2]
[356963315,1743503438466,-422.67699758,0.00016437,2]
[356963316,1743503438479,-500.0,0.00016437,2]
[356963317,1743503438490,-500.0,0.00016437,2]
[356963318,1743503438500,-500.0,0.00016437,2]
[356963319,1743503438509,-500.0,0.00016437,2]
[356963320,1743503438519,-500.0,0.00016437,2]
[356963321,1743503438529,-500.0,0.00016437,2]
[356963322,1743503438539,-500.0,0.00016437,2]
[356963323,1743503438549,-500.0,0.00016437,2]
[356963324,1743503438558,-500.0,0.00016437,2]
[356963325,1743503438568,-500.0,0.00016437,2]
[356963326,1743503438578,-500.0,0.00016437,2]
[356963327,1743503438589,-500.0,0.00016437,2]
[356963328,1743503438598,-475.68687477,0.00016437,2]
[356963329,1743503438608,-500.0,0.00016437,2]
[356963330,1743503438618,-500.0,0.00016437,2]
[356963331,1743503438627,-500.0,0.00016437,2]
[356963332,1743503438637,-500.0,0.00016437,2]
[356963333,1743503438646,-500.0,0.00016437,2]
[356963334,1743503438656,-500.0,0.00016437,2]
[356963335,1743503438665,-500.0,0.00016437,2]
[356963336,1743503438675,-500.0,0.00016437,2]
[356963337,1743503438684,-500.0,0.00016437,2]
[356963338,1743503438694,-500.0,0.00016437,2]
[356963339,1743503438703,-500.0,0.00016437,2]
[356963340,1743503438713,-500.0,0.00016437,2]
[356963341,1743503438723,-500.0,0.00016437,2]
[356963342,1743503438732,-500.0,0.00016437,2]
[356963343,1743503438741,-500.0,0.00016437,2]
[356963344,1743503438751,-500.0,0.00016437,2]
[356963345,1743503438761,-500.0,0.00016437,2]
[356963346,1743503438771,-500.0,0.00016437,2]
[356963347,1743503438781,-500.0,0.00016437,2]
[356963348,1743503438791,-515.59899496,0.00016437,2]
[356963349,1743503438801,-500.0,0.00016437,2]
[356963350,1743503438811,-500.0,0.00016437,2]
[356963351,1743503438821,-500.0,0.00016437,2]
[356963352,1743503438832,-500.0,0.00016437,2]
[356963353,1743503438842,-500.0,0.00016437,2]
[356963354,1743503438852,-500.0,0.00016437,2]
[356963355,1743503438861,-500.0,0.00016437,2]
[356963356,1743503438871,-500.0,0.00016437,2]
[356963357,1743503438881,-500.0,0.00016437,2]
[356963358,1743503438892,-500.0,0.00016437,2]
[356963359,1743503438902,-500.0,0.00016437,2]
[356963360,1743503438912,-500.0,0.00016437,2]
[356963361,1743503438922,-500.0,0.00016437,2]
[356963362,1743503438932,-500.0,0.00016437,2]
[356963363,1743503438942,-646.67164405,0.00016438,2]
[356963364,1743503438951,-500.0,0.00016438,2]
[356963365,1743503438960,-500.0,0.00016438,2]
[356963366,1743503438970,-500.0,0.00016438,2]
[356963367,1743503438980,-500.0,0.00016438,2]
[356963368,1743503438989,-500.0,0.00016438,2]
[356963369,1743503438999,-500.0,0.00016438,2]
[356963370,1743503439009,-180.14,0.00016438,2]
[356963371,1743503439019,-500.0,0.00016438,2]
[356963372,1743503439028,-485.86,0.00016438,2]
[356963373,1743503439038,-500.0,0.00016438,2]
[356963374,1743503439047,-500.0,0.00016438,2]
[356963375,1743503439056,-500.0,0.00016438,2]
[356963376,1743503439066,-500.0,0.00016438,2]
[356963377,1743503439075,-500.0,0.00016438,2]
[356963378,1743503439089,-500.0,0.00016438,2]
[356963379,1743503439098,-312.3,0.00016438,2]
[356963380,1743503439107,-1552.78,0.00016438,2]
[356963381,1743503439117,-500.0,0.00016438,2]
[356963382,1743503439126,-500.0,0.00016438,2]
[356963383,1743503439136,-500.0,0.00016438,2]
[356963384,1743503439146,-500.0,0.00016438,2]
[356963385,1743503439157,-500.0,0.00016438,2]
[356963386,1743503439167,-839.03,0.00016438,2]
[356963387,1743503439177,-423.97,0.00016438,2]
[356963388,1743503439186,-500.0,0.00016438,2]
[356963389,1743503439196,-500.0,0.00016438,2]
[356963390,1743503439206,-500.0,0.00016438,2]
[356963391,1743503439217,-500.0,0.00016438,2]
[356963392,1743503439226,-1499.24053547,0.00016438,2]
[356963496,1743503443693,-505.87799944,0.00016274,2]
[356963498,1743503443940,-505.38712092,0.00016274,2]
[356963543,1743503446607,-324.20670944,0.00016274,2]
[356963544,1743503446618,-151.0,0.00016438,2]
[356963545,1743503446628,-156.94927,0.00016438,2]
[356963546,1743503446638,-2868.23637055,0.00016438,2]
[356963547,1743503468318,304.46,0.00010959,2]
[356963548,1743503561253,251.36,0.00010959,2]
[356963549,1743503571762,209.46,0.00010959,2]
[356963550,1743503582466,384.02,0.00010959,2]
[356963551,1743503592959,494.58,0.00010959,2]
[356963552,1743503603444,557.61,0.00010959,2]
[356963553,1743503614190,585.89,0.00010959,2]
[356963554,1743503624695,589.26,0.00010959,2]
[356963558,1743503635193,575.23,0.00010959,2]
[356963559,1743503645720,549.51,0.00010959,2]
[356963560,1743503656207,516.38,0.00010959,2]
[356963561,1743503666866,479.04,0.00010959,2]
[356963562,1743503677262,439.79,0.00010959,2]
[356963563,1743503687948,428.52,0.00010959,2]
[356963564,1743503698493,357.1,0.00010959,2]
[356963566,1743503709054,297.58,0.00010959,2]
[356963567,1743503719562,388.95,0.00010959,2]
[356963568,1743503721588,-209.54504533,0.00016437,2]
[356963569,1743503730064,324.12,0.00010959,2]
[356963570,1743503738061,-12.77780867,0.00016437,2]
[356963571,1743503738085,-268.0,0.00016438,2]
[356963572,1743503738115,-9.677146,0.00016438,2]
[356963573,1743503740590,270.1,0.00010959,2]
[356963574,1743503751337,225.09,0.00010959,2]
[356963575,1743503761931,187.57,0.00010959,2]
[356963576,1743503763999,-167.6064725,0.00015821,2]
[356963577,1743503764023,-12.13325347,0.00016438,2]
[356963578,1743503768315,-167.60647244,0.00016438,2]
[356963579,1743503772039,-300.0,0.00016438,2]
[356963580,1743503772480,156.31,0.00010959,2]
[356963581,1743503777885,-25.40898936,0.00016438,2]
[356963582,1743503777909,-274.59101064,0.00016438,2]
[356963583,1743503783223,781.57,0.00010959,2]
[356963584,1743503788834,-157.0197618,0.00016438,2]
[356963585,1743503796180,-83.02567381,0.00016438,2]
[356963586,1743503796202,-108.43592619,0.00016438,2]
[356963587,1743503814575,-170.01932539,0.00016438,2]
[356963588,1743503820961,-151.0,0.00016438,2]
[356963589,1743503827987,-150.39660977,0.00016437,2]
[356963590,1743503834764,-151.0,0.00016273,2]
[356963591,1743503834790,-63.5226458,0.00016437,2]
[356963592,1743503848315,-150.39660977,0.0001611,2]
[356963593,1743503848338,-70.52192923,0.00016437,2]
[356963594,1743503863721,-15.5588152,0.00016437,2]
[356963595,1743503863746,-133.10461049,0.00016438,2]
[356963596,1743503863770,-1.83617431,0.00016438,2]
[356963597,1743503873521,-152.93349173,0.00016274,2]
[356963598,1743503884265,-150.39660977,0.00016274,2]
[356963599,1743503921924,-68.0880375,0.00016274,2]
[356963600,1743503921949,-94.58189519,0.00016437,2]
[356963601,1743503927089,-245.53100959,0.00016273,2]
[356963602,1743503932007,-57.79909191,0.00016273,2]
[356963603,1743503932031,-138.41810481,0.00016437,2]
[356963604,1743503932054,-330.63187497,0.00016437,2]
[356963605,1743503932080,-39.20772831,0.00016437,2]
[356963606,1743503941992,-151.18618189,0.00016273,2]
[356963607,1743503945885,-94.3448277,0.00016273,2]
[356963608,1743503945909,-225.6825924,0.00016338,2]
[356963609,1743503950037,-244.87850032,0.00016175,2]
[356963610,1743503962592,-123.83736927,0.00016175,2]
[356963611,1743503962621,-33.56401073,0.00016338,2]
[356963612,1743504075899,-167.6064725,0.00016338,2]
[356963613,1743504096963,-167.642954,0.00016338,2]
[356963614,1743504155795,-151.0,0.00016338,2]
[356963615,1743504278387,-175.159423,0.00015642,2]
[356963653,1743504636645,-1509.83650563,0.00015505,2]
[356963654,1743504636657,-1733.34964477,0.00015505,2]
[356963655,1743504636666,-218.295511,0.00015642,2]
[356963656,1743504636675,-1793.41715921,0.00016337,2]
[356963657,1743504636685,-4664.7505735,0.00016338,2]
[356963658,1743504636694,-2545.81118932,0.00016437,2]
[356963659,1743504636703,-460.79227169,0.00016437,2]
[356963660,1743504636713,-500.0,0.00016437,2]
[356963661,1743504636723,-500.0,0.00016437,2]
[356963662,1743504636732,-500.0,0.00016437,2]
[356963663,1743504636741,-500.0,0.00016437,2]
[356963664,1743504636750,-500.0,0.00016437,2]
[356963665,1743504636759,-500.0,0.00016437,2]
[356963666,1743504636769,-500.0,0.00016437,2]
[356963667,1743504636781,-500.0,0.00016437,2]
[356963668,1743504636791,-500.0,0.00016437,2]
[356963669,1743504636800,-500.0,0.00016437,2]
[356963670,1743504636809,-500.0,0.00016437,2]
[356963671,1743504636820,-500.0,0.00016437,2]
[356963672,1743504636829,-500.0,0.00016437,2]
[356963673,1743504636839,-500.0,0.00016437,2]
[356963674,1743504636849,-500.0,0.00016437,2]
[356963675,1743504636860,-500.0,0.00016437,2]
[356963676,1743504636870,-500.0,0.00016437,2]
[356963677,1743504636880,-500.0,0.00016437,2]
[356963678,1743504636889,-500.0,0.00016437,2]
[356963679,1743504636899,-500.0,0.00016437,2]
[356963680,1743504636909,-500.0,0.00016437,2]
[356963681,1743504636918,-500.0,0.00016437,2]
[356963682,1743504636928,-559.52733598,0.00016437,2]
[356963683,1743504636938,-500.0,0.00016437,2]
[356963684,1743504636948,-500.0,0.00016437,2]
[356963685,1743504636958,-500.0,0.00016437,2]
[356963686,1743504636968,-500.0,0.00016437,2]
[356963687,1743504636978,-500.0,0.00016437,2]
[356963688,1743504636988,-500.0,0.00016437,2]
[356963689,1743504636998,-500.0,0.00016437,2]
[356963690,1743504637012,-500.0,0.00016437,2]
[356963691,1743504637022,-500.0,0.00016437,2]
[356963692,1743504637032,-500.0,0.00016437,2]
[356963693,1743504637042,-500.0,0.00016437,2]
[356963694,1743504637051,-88.57682056,0.00016437,2]
[356963704,1743504638643,-411.42317944,0.00016437,2]
[356963705,1743504638654,-500.0,0.00016437,2]
[356963706,1743504638665,-500.0,0.00016437,2]
[356963707,1743504638675,-450.0,0.00016437,2]
[356963708,1743504638684,-500.0,0.00016437,2]
[356963709,1743504638694,-500.0,0.00016437,2]
[356963710,1743504638704,-242.766112,0.00016437,2]
[356963711,1743504638714,-151.0,0.00016437,2]
[356963712,1743504638723,-151.0,0.00016437,2]
[356963713,1743504638732,-151.0,0.00016437,2]
[356963714,1743504638742,-151.0,0.00016437,2]
[356963715,1743504638751,-151.0,0.00016437,2]
[356963716,1743504638761,-268.0,0.00016437,2]
[356963717,1743504638771,-500.0,0.00016438,2]
[356963718,1743504638784,-463.33,0.00016438,2]
[356963720,1743504638794,-500.0,0.00016438,2]
[356963721,1743504638804,-500.0,0.00016438,2]
[356963722,1743504638814,-500.0,0.00016438,2]
[356963723,1743504638823,-452.59,0.00016438,2]
[356963724,1743504638833,-500.0,0.00016438,2]
[356963725,1743504638842,-500.0,0.00016438,2]
[356963726,1743504638853,-451.52,0.00016438,2]
[356963727,1743504638863,-500.0,0.00016438,2]
[356963728,1743504638873,-570.97,0.00016438,2]
[356963729,1743504638882,-500.0,0.00016438,2]
[356963730,1743504638892,-500.0,0.00016438,2]
[356963731,1743504638901,-500.0,0.00016438,2]
[356963732,1743504638911,-237.44,0.00016438,2]
[356963733,1743504638920,-500.0,0.00016438,2]
[356963734,1743504638930,-500.0,0.00016438,2]
[356963735,1743504638941,-511.42532965,0.00016438,2]
[356963736,1743504638951,-500.0,0.00016438,2]
[356963737,1743504638960,-533.24310599,0.00016438,2]
[356963738,1743504638970,-500.0,0.00016438,2]
[356963739,1743504638980,-500.0,0.00016438,2]
[356963740,1743504638989,-500.0,0.00016438,2]
[356963741,1743504638999,-303.71,0.00016438,2]
[356963742,1743504639009,-530.35992303,0.00016438,2]
[356963743,1743504639018,-531.96234183,0.00016438,2]
[356963744,1743504639027,-179.65110322,0.00016438,2]
[356963745,1743504639037,-531.5340364,0.00016438,2]
[356963746,1743504639047,-538.86629748,0.00016438,2]
[356963747,1743504639057,-226.97983796,0.00016438,2]
[356963748,1743504639067,-500.0,0.00016438,2]
[356963749,1743504639076,-500.0,0.00016438,2]
[356963750,1743504639086,-500.0,0.00016438,2]
[356963751,1743504639096,-188.45250545,0.00016438,2]
[356963752,1743504639105,-500.0,0.00016438,2]
[356963753,1743504639115,-509.37202669,0.00016438,2]
[356963754,1743504639125,-500.0,0.00016438,2]
[356963755,1743504639134,-500.0,0.00016438,2]
[356963756,1743504639144,-500.0,0.00016438,2]
[356963757,1743504639153,-500.0,0.00016438,2]
[356963758,1743504639162,-403.66720397,0.00016438,2]
[356963759,1743504639175,-96.33279603,0.00016438,2]
[356963760,1743504639185,-500.0,0.00016438,2]
[356963761,1743504639194,-500.0,0.00016438,2]
[356963762,1743504639204,-500.0,0.00016438,2]
[356963763,1743504639213,-318.62,0.00016438,2]
[356963764,1743504639222,-347.05,0.00016438,2]
[356963765,1743504639232,-500.0,0.00016438,2]
[356963766,1743504639242,-500.0,0.00016438,2]
[356963767,1743504639251,-599.86,0.00016438,2]
[356963768,1743504639261,-425.06200158,0.00016438,2]
[356963793,1743504643888,-89.36182411,0.00016438,2]
[356963794,1743504643899,-516.02741593,0.00016438,2]
[356963795,1743504643910,-242.61076156,0.00016438,2]
[356963814,1743504646925,-272.52888292,0.00016438,2]
[356963815,1743504646936,-515.63623248,0.00016438,2]
[356963816,1743504646946,-62.5748846,0.00016438,2]
[356963817,1743504646979,-455.64620974,0.00016438,2]
[356963818,1743504646989,-467.46461214,0.00016438,2]
[356963819,1743504646998,-151.0,0.00016438,2]
[356963820,1743504647007,-151.0,0.00016438,2]
[356963821,1743504647016,-500.0,0.00016438,2]
[356963822,1743504647026,-151.0,0.00016438,2]
[356963823,1743504647036,-180.710466,0.00016438,2]
[356963824,1743504647045,-252.2090124,0.00016438,2]
[356963825,1743504647054,-500.0,0.00016438,2]
[356963826,1743504647063,-500.0,0.00016438,2]
[356963827,1743504647073,-552.06199962,0.00016438,2]
[356963828,1743504647082,-505.17760135,0.00016438,2]
[356963829,1743504647091,-500.0,0.00016438,2]
[356963830,1743504647100,-500.0,0.00016438,2]
[356963831,1743504647110,-500.0,0.00016438,2]
[356963832,1743504647120,-200.0,0.00016438,2]
[356963833,1743504647132,-500.0,0.00016438,2]
[356963834,1743504647142,-151.0,0.00016438,2]
[356963835,1743504647152,-217.49728,0.00016438,2]
[356963836,1743504647162,-500.0,0.00016438,2]
[356963837,1743504647172,-514.21720383,0.00016438,2]
[356963838,1743504647181,-500.0,0.00016438,2]
[356963839,1743504647192,-756.5,0.00016438,2]
[356963840,1743504647202,-500.0,0.00016438,2]
[356963841,1743504647211,-187.68813717,0.00016438,2]
[356963842,1743504690228,323.61,0.00010959,2]
[356963843,1743504700936,392.26,0.00010959,2]
[356963844,1743504711304,326.88,0.00010959,2]
[356963845,1743504721820,272.4,0.00010959,2]
[356963846,1743504732346,485.22,0.00010959,2]
[356963847,1743504742869,404.35,0.00010959,2]
[356963848,1743504753630,445.33,0.00010959,2]
[356963849,1743504764195,412.16,0.00010959,2]
[356963850,1743504774720,343.47,0.00010959,2]
[356963851,1743504785213,348.94,0.00010959,2]
[356963852,1743504795815,433.33,0.00010959,2]
[356963853,1743504806660,361.11,0.00010959,2]
[356963854,1743504817184,300.93,0.00010959,2]
[356963855,1743504827702,250.77,0.00010959,2]
[356963856,1743504838214,208.98,0.00010959,2]
[356963857,1743504848753,174.15,0.00010959,2]
[356963858,1743504859270,870.75,0.00010959,2]
[356963859,1743504948162,-300.0,0.00016437,2]
[356963860,1743504948187,-519.07898012,0.00016438,2]
[356963861,1743504948210,-222.82211988,0.00016438,2]
[356963862,1743504952146,-150.48385792,0.00015946,2]
[356963863,1743504958534,-175.67556508,0.00015946,2]
[356963864,1743504958558,-277.17788012,0.00016438,2]
[356963865,1743504958740,-47.1465548,0.00016438,2]
[356963866,1743505024229,-363.76,0.00016438,2]
[356963867,1743505082721,-162.11937614,0.00016438,2]
[356963868,1743505119844,-200.2416205,0.00015755,2]
[356963869,1743505119868,-25.29214701,0.00016437,2]
[356963870,1743505123515,-236.70785299,0.00016437,2]
[356963871,1743505123536,-230.15819044,0.00016438,2]
[356963883,1743505157859,-167.642955,0.00016337,2]
[356963884,1743505198518,343.06,0.00010959,2]
[356963885,1743505343533,287.45,0.00010959,2]
[356963886,1743505501115,-234.4635,0.00015618,2]
[356963904,1743505832002,-46.085444,0.00015618,2]
[356963905,1743505832013,-1041.0999548,0.00015812,2]
[356963906,1743505832023,-178.56794436,0.00016405,2]
[356963907,1743505832033,-500.0,0.00016432,2]
[356963908,1743505832042,-201.93679913,0.00016432,2]
[356963909,1743505832052,-19.45272334,0.00016432,2]
[356963934,1743505837846,-509.04227474,0.00016431,2]
[356963935,1743505837857,-620.2999911,0.00016431,2]
[356963936,1743505837867,-600.0,0.00016431,2]
[356963937,1743505837876,-500.0,0.00016431,2]
[356963938,1743505837885,-601.10440537,0.00016431,2]
[356963939,1743505837895,-601.10440537,0.00016431,2]
[356963940,1743505837904,-218.61812972,0.00016431,2]
[356963941,1743505837914,-556.5440709,0.00016431,2]
[356963942,1743505837925,-44.56033447,0.00016431,2]
[356963943,1743505837935,-601.10440537,0.00016431,2]
[356963944,1743505837944,-13.27833408,0.00016431,2]
[356963953,1743505841567,-232.47202364,0.00016431,2]
[356963968,1743505843127,-371.7,0.00016431,2]
[356963996,1743505845968,-49628.3,0.00016431,2]
[356963997,1743505845979,-355.35404765,0.00016431,2]
[356963998,1743505845990,-601.10440537,0.00016431,2]
[356963999,1743505846001,-601.10440537,0.00016431,2]
[356964000,1743505846012,-601.10440537,0.00016431,2]
[356964001,1743505846023,-601.10440537,0.00016431,2]
[356964002,1743505846034,-601.10440537,0.00016431,2]
[356964003,1743505846046,-601.10440537,0.00016431,2]
[356964004,1743505846057,-601.10440537,0.00016431,2]
[356964005,1743505846068,-601.10440537,0.00016431,2]
[356964006,1743505846079,-601.10440537,0.00016431,2]
[356964007,1743505846090,-601.10440537,0.00016431,2]
[356964008,1743505846102,-601.10440537,0.00016431,2]
[356964009,1743505846112,-601.10440537,0.00016431,2]
[356964010,1743505846125,-601.10440537,0.00016431,2]
[356964011,1743505846136,-601.10440537,0.00016431,2]
[356964012,1743505846311,-601.10440537,0.00016431,2]
[356964013,1743505846321,-601.10440537,0.00016431,2]
[356964014,1743505846330,-601.10440537,0.00016431,2]
[356964015,1743505846340,-601.10440537,0.00016431,2]
[356964016,1743505846349,-601.10440537,0.00016431,2]
[356964017,1743505846359,-601.10440537,0.00016431,2]
[356964018,1743505846369,-601.10440537,0.00016431,2]
[356964019,1743505846379,-601.10440537,0.00016431,2]
[356964020,1743505846388,-601.10440537,0.00016431,2]
[356964021,1743505846398,-601.10440537,0.00016431,2]